Cogmind - Beta 16 @@@ ROGUE MODE // 2025.12.17 @ 19:14:09 Player: MrProgressor Result: Core destroyed Performance ------------- Evolutions (0) 0 Regions Visited (0) 0 Robots Destroyed (3) 15 Value Destroyed (20) 20 Prototype IDs (0) 0 Alien Tech Used (0) 0 Bonus (0) 0 TOTAL SCORE: 35 Bonus ------- None Cogmind --------- Core Integrity 0/250 Matter 300/300 Energy 43/125 System Corruption 12% Temperature Critical (566) Movement Treading (160) Location -11/Scrapyard Parts ------- > --- POWER (1) -------- Light Ion Engine > --- PROPULSION (2) --- Light Treads > --- UTILITY (2) ------ Small Storage Unit > --- WEAPON (2) ------- (None) > --- INVENTORY (8) ---- Wheel Compact Wheel Compact Wheel Tractor Beam Peak State ------------ > --- POWER ------------ Light Ion Engine > --- PROPULSION ------- Wheel Compact Wheel > --- UTILITY ---------- Small Storage Unit Seismic Detector > --- WEAPON ----------- Medium Laser Medium Laser > --- INVENTORY -------- Light Ion Engine Light Treads Light Treads Wheel Compact Wheel Compact Wheel Tractor Beam EM Pulse Gun [Rating: 7] Favorites ----------- Power Light Ion Engine Engine Light Ion Engine Propulsion Compact Wheel Treads Light Treads Wheel Compact Wheel Utility Small Storage Unit Device Seismic Detector Storage Small Storage Unit Weapon Medium Laser Energy Gun Medium Laser Build | -11 ------- Run | Yrd Slots Evolved . | . Power . | . Propulsion . | . Utility . | . Weapon . | . Parts Attached 11 | 11 Power 2 | 2 Engine 2 | 2 Core . | . Reactor . | . Propulsion 4 | 4 Treads 2 | 2 Leg . | . Wheel 2 | 2 Hover . | . Flight . | . Utility 2 | 2 Device 1 | 1 Storage 1 | 1 Processor . | . Hackware . | . Protection . | . Artifact . | . Weapon 3 | 3 Energy Gun 3 | 3 Energy Cannon . | . Ballistic Gun . | . Ballistic Cannon . | . Launcher . | . Special Weapon . | . Impact Weapon . | . Slashing Weapon . | . Piercing Weapon . | . Special Melee Weapon . | . Unidentified Prototypes . | . Parts Lost 8 | 8 Power 1 | 1 Propulsion 3 | 3 Utility 1 | 1 Weapon 3 | 3 Highest Loss Streak 8 | 8 To Critical Strikes . | . Average Backups 7 | 7 Power . | . Propulsion 4 | 4 Utility . | . Weapon . | . Tool/Special . | . Unused Backups 4 | 4 Power . | . Propulsion 3 | 3 Utility 1 | 1 Weapon . | . Tool/Special . | . Average Slot Usage (%) . | . Peak Build Rating 7 | 7 Average Rating 6 | 6 On Entrance . | . Avg Prop Armor Cover (%) . | . Naked Turns . | . Heaviest Build 13 | 13 Greatest Support 26 | 26 Greatest Overweight (x) . | . Average Overweight (x) . | . Largest Inventory Capacity 8 | 8 Average Capacity 7 | 7 Most Carried 8 | 8 Average Carried 7 | 7 Final Capacity 8 | 8 Final Carried 4 | 4 Class Distribution -------------------- None Dominant Class ---------------- None Resources | -11 ----------- Run | Yrd Matter Collected 285 | 285 Remotely . | . Salvage Created 151 | 151 Parts 6 | 6 Haulers Intercepted . | . Recyclers Shooed . | . Parts Field Recycled . | . Retrieved Matter . | . Parts Self-Destructed . | . Prevented . | . Parts Restored . | . Kills | -11 ------- Run | Yrd Combat Hostiles Destroyed 4 | 4 Guns 4 | 4 Classes Destroyed 3 | 3 Tunneler 2 | 2 Recycler 1 | 1 Assembled 4 | 4 Best Kill Streak 4 | 4 Combat Bots Only 4 | 4 Max Kills in Single Turn 2 | 2 Gunslinging 1 | 1 Exploded . | . Melee . | . Uniques/NPCs Destroyed . | . Combat | -11 -------- Run | Yrd Hostile Shots Fired 65 | 65 Missed 6 | 6 Hits 59 | 59 Melee 10 | 10 Projectile 49 | 49 Critical Strikes 1 | 1 Damage Taken 903 | 903 Core 283 | 283 Absorbed by Shields . | . Core Remaining (%) . | . Volleys Fired 16 | 16 Largest 2 | 2 Hottest 100 | 100 Shots Fired 29 | 29 Gun 29 | 29 Cannon . | . Launcher . | . Special . | . Kinetic . | . Thermal 28 | 28 Explosive . | . Electromagnetic 1 | 1 Robot Hit Streak 5 | 5 Robot Miss Streak 4 | 4 Penetration Max . | . Secondary Targets 1 | 1 Max Gunslinging Chain 1 | 1 Shots Hit Robots 16 | 16 Core Hits 13 | 13 Critical Kills . | . Critical Parts Destroyed . | . Critical Strikes 2 | 2 Burn 2 | 2 Melee Attacks . | . Impact . | . Slashing . | . Piercing . | . Sneak Attacks . | . Combat Hostiles . | . Follow-up Attacks . | . Damage Inflicted 241 | 241 Guns 238 | 238 Cannons . | . Explosions . | . Melee . | . Ramming 3 | 3 Kinetic . | . Thermal 227 | 227 Explosive . | . Electromagnetic 11 | 11 Impact . | . Slashing . | . Piercing . | . Highest Corruption 12 | 12 Average Corruption 9 | 9 Corruption Purged . | . Corruption Blocked . | . Effects 1 | 1 Heat Flow Errors 1 | 1 Overload Shots . | . Overflow Damage . | . Projectiles . | . Explosions . | . Melee . | . Knockbacks . | . Impact . | . Kinetic . | . Secondary . | . Self-Inflicted Damage . | . Shots . | . Rammed 2 | 2 Targets Rammed 2 | 2 Kicked . | . Crushed . | . Highest Temperature 731 | 731 Average Temperature 291 | 291 Received Heat Transfer 160 | 160 Effects 13 | 13 Shutdowns 2 | 2 Energy Bleed 2 | 2 Interference 2 | 2 Damage (minor) 2 | 2 Damage (major) 4 | 4 Damage (core) 1 | 1 Siege Activations . | . Martial Activations . | . Shielding Activations . | . Robots Disrupted . | . Combat Hostiles . | . Robots Corrupted . | . Combat Hostiles . | . Parts Fried . | . Impact Corruptions . | . Robots Melted . | . Combat Hostiles . | . Parts Melted . | . Heat Transferred 814 | 814 Parts Sabotaged . | . Parts Stolen . | . Parts Stripped . | . Power Chain Reactions . | . Alert | -11 ------- Run | Yrd Maximum Alert Level . | . Low Security (%) 100 | 100 Level 1 . | . Level 2 . | . Level 3 . | . Level 4 . | . Level 5 . | . High Security . | . Max Security . | . Peak Influence 15 | 15 Initial . | . Average . | . Influence Increases 15 | 15 Destroy 0b10 Robot/NC 15 | 15 Influence Decreases 15 | 15 Time Decay 15 | 15 Squads Dispatched . | . Investigation . | . Extermination . | . Reinforcement . | . Assault . | . Garrison . | . Intercept . | . Searches Triggered . | . Construction Impeded . | . Haulers Reinforced . | . Active Scanning Responses . | . Cargo Convoy Interrupts . | . Stealth | -11 --------- Run | Yrd Distress Signals . | . Communications Jammed . | . Distress Signals . | . Times Spotted 11 | 11 Peak Tracking Total 9 | 9 Tactical Retreats . | . Traps | -11 ------- Run | Yrd Traps Triggered . | . Indirectly . | . Trap Hack Attempts . | . Triggered . | . Disarmed . | . Reprogrammed . | . Reused . | . Traps Extracted . | . Installed . | . Triggered . | . Machines | -11 ---------- Run | Yrd Machines Disabled . | . Max in Single Turn . | . Machines Repaired . | . Machines Dismantled . | . Machines Sabotaged . | . Overloaded Fab Kills . | . Hacking | -11 --------- Run | Yrd Machines Accessed . | . Terminals . | . Fabricators . | . Repair Stations . | . Recycling Units . | . Scanalyzers . | . Garrison Access . | . Total Hacks . | . Successful . | . Failed . | . Catastrophic . | . Database Lockouts . | . Manual . | . Terminals . | . Fabricators . | . Repair Stations . | . Recycling Units . | . Scanalyzers . | . Garrison Access . | . Terminal Hacks . | . Fabricator Hacks . | . Repair Station Hacks . | . Recycling Unit Hacks . | . Scanalyzer . | . Garrison Access Hacks . | . Unauthorized Hacks . | . Terminals . | . Fabricators . | . Repair Stations . | . Recycling Units . | . Scanalyzers . | . Garrison Access . | . Data Cores Recovered . | . Used . | . Hacking Detections . | . Full Trace Events . | . Feedback Events . | . Feedback Blocked . | . Robot Schematics Acquired . | . Robots Built . | . Authchips . | . Time . | . Total Robot Build Rating . | . Part Schematics Acquired . | . Parts Built . | . Authchips . | . Time . | . Total Part Build Rating . | . Part Studies Acquired . | . Parts Repaired . | . Time . | . Parts Recycled . | . Recycled Matter . | . Retrieved Matter . | . Retrieved Components . | . Parts Scanalyzed . | . Part Schematics Acquired . | . Parts Damaged . | . Bothacking | -11 ------------ Run | Yrd Used RIF Installer . | . Robots Hacked . | . Non-combat . | . Combat . | . Robot Hacks Applied . | . Relay Couplers Released . | . Fabnet Peak Effective % . | . Robots Rewired . | . Allies Hacked . | . Hacks Repelled . | . Allies | -11 -------- Run | Yrd Total Allies . | . Largest Group . | . Highest-Rated Group . | . Highest-Rated Ally . | . Total Orders . | . Ally Attacks . | . Total Damage . | . Kills . | . Allies Corrupted . | . Allies Melted . | . Intel | -11 ------- Run | Yrd Active Infowar (turns) 1789 | 1789 Seismic 1789 | 1789 Robot Analysis Total . | . Derelict Logs Recovered . | . Drone Launches . | . Drone Recoveries . | . Exploration | -11 ------------- Run | Yrd Turns Passed 1879 | 1879 Spaces Moved 328 | 328 Core 5 | 5 Treads . | . Legs . | . Wheels 323 | 323 Hover . | . Flight . | . Fastest Speed 50 | 50 Average Speed 89 | 89 Slowest Speed 100 | 100 Overloaded Moves . | . Propulsion Burnouts . | . Robots Hopped . | . Potential Cave-ins . | . Cave-ins Triggered . | . Exploration Rate (%) 46 | 46 Regions Visited . Branch Regions . Pre-discovered Areas . | . Known Exits Taken . | . Unknown Exits Taken . | . Scrap Searched . | . Spaces Dug . | . Terrain Destroyed . | . Melee . | . Projectile . | . AOE . | . Terrain Rammed . | . Walls Destroyed . | . Machines Disabled . | . Actions | -11 --------- Run | Yrd Total 1880 | 1880 Wait 1514 | 1514 Move 328 | 328 Hop . | . Pick Up 9 | 9 Fast Attach 6 | 6 Attach 5 | 5 Detach . | . Swap . | . Drop . | . Fire 16 | 16 Melee . | . Ram . | . Kick . | . Crush 2 | 2 Escape Stasis . | . Rewire . | . Trap . | . Miscellaneous . | . Route ------- -11/Scrapyard (discovered 1 exit: [*Mat]) History --------- Turn | Location | Event 6 | -11/Scrapyard | Discovered new exit (range 15) 1784 | -11/Scrapyard | Assembled infested the area 1866 | -11/Scrapyard | Core integrity fell below 50% 1873 | -11/Scrapyard | System corruption reached 10% 1879 | -11/Scrapyard | Core integrity fell below 20% 1881 | -11/Scrapyard | Core destroyed Last Messages --------------- 01872_ Overheating: System interference. 01872_ Seismic Detector temporarily disabled. 01872_ Seismic Detector destroyed. 01872_ System corrupted by crushing effect (+5). 01872_ Com. Wheel destroyed. 01875_ Overheating: Energy bleed (-2). 01876_ Power failure, Lgt. Ion Engine shutdown. 01876_ Overheating: Lgt. Treads damaged (-73). 01876_ Overheating: Lgt. Treads damaged (-37). 01876_ Overheating: Lgt. Ion Engine damaged (-19). 01876_ Overheating: Sml. Storage Unit damaged (-20). 01877_ Overheating: System interference. 01877_ Med. Laser temporarily disabled. 01877_ Slammed into as-02266. 01878_ Overheating: Energy bleed (-6). 01878_ Med. Laser destroyed. 01879_ Overheating: Sml. Storage Unit damaged (-4). 01879_ Slammed into as-02266. 01880_ Lgt. Treads destroyed. 01881_ Overheating: Core damaged (-40). Map ----- +----------------------------------------------------+ | | | | | | | | | | | | | | | | | | | ?????????????????????????????????????????????????? | | ?????????????????????????????????????????????????? | | ?????????????????????????????????????????????????? | | ?????????????????????????????????????????????????? | | ?????????????????????????????????????????????????? | | ?????????????????????????????????????????????????? | | ?????????????????????????????????????????????????? | | ?????????????????????????????????????????????????? | | ?????????????????????????????????????????????????? | | ?????????????????????????????????????????????????? | | ?????????????????????????????????????????????????? | | ?????????????????????????????????????????????????? | | ?????????????????????????????????????????????????? | | ?????????????????????????????????????????????????? | | ????????????????????#######?##???????????????????? | | ???????????????????## a%#%*######??????????????? | | ???????????????????# a@#!=# #??????????????? | | ???????????????????# aaaa # #??????????????? | | ???????????????????# # #??????????????? | | ???????????????????# #??????????????? | | ???????????????????# a ######?????????? | | ???????????????????##### # # #####?????? | | ???????????????????# # # ??????? | | ???????????????????# ! # # ????????? | | ???????????????????# # #?????????? | | ???????????????????# ####### #??????????? | | ???????????????????## #??????????? | | ????????????????????### #??????????? | | ??????????????????????##### ####### #??????????? | | ???????????????????????????##??????# #??????????? | | ???????????????????????????????????# #??????????? | | ???????????????????????????????????# #??#####???? | | ?????????????????????????????#####?# #? #???? | | ????????????????????????????## # # #???? | | ????????????????????????????# # # #???? | | ????????????????????????????# #???? | | ????????????????????????????# # # #???? | | ????????????????????????????# # # #???? | | ?????????????#######????????# ?# #?######???? | | ?????????????# #????????#####??# #?########## | | ?????????????# #???????????????# # | +----------------------------------------------------+ Best States ------------- Heat Dissipation 25 Energy Generation 10 Energy Capacity 125 Matter Stores 300 Matter Capacity 300 Sight Range 16 Terrain Scan Density 10 Evasion (%) 42 Recoil Reduction 2 Item Schematics ----------------- None Robot Schematics ------------------ None Fabricated ------------ Nothing Repaired ---------- Nothing Studied --------- None Alien Tech Used ----------------- None Achievements -------------- None Challenges ------------ None Game ------ Seed StormKineticUnit Manual? 0 Play Time 00:14:56 Cumulative 226.6 hours Start 2025.12.17 @ 18:54:54 End 2025.12.17 @ 19:14:09 Sessions 0 Manual Loads 0 Difficulty Rogue Special Mode None Game No. 71 Rogue 71 Adventurer 0 Explorer 0 Win Type - Total 2 Types 2/0/0/0/0/0/0/0/0/0 Lore% 45 Gallery% 58 Achievement% 37 Wizard Run 0 Options --------- Layout 0 ASCII 0 Keyboard 0 Movement Numpad Keybinds 1 Fullscreen 2 Font 18/SmallcapsGlow Map View 76x50 Zoom Use 0% Tactical HUD 1 Map Filters NONE Filters NONE Steam 1 RUN: 36be5f0c-6bc7-462d-80bf-5430050d064a